bitfinex-derivatives/quotes_BTCF0:USTF0_20241213
["timestamp","ask_amount","ask_price","bid_price","bid_amount"]
[1734096688983,0.73911637,100150.0,100140.0,0.21031488]
[1734096689989,0.73911637,100150.0,100140.0,0.38981962]
[1734096690188,0.37831637,100150.0,100140.0,0.38981962]
[1734096690389,0.73911637,100150.0,100140.0,0.38981962]
[1734096690576,0.73911637,100150.0,100140.0,0.21031488]
[1734096690783,0.73911637,100150.0,100140.0,0.114532]
[1734096691892,0.73911637,100150.0,100140.0,0.29403674]
[1734096692295,0.56000182,100150.0,100140.0,0.29403674]
[1734096692493,0.73911637,100150.0,100140.0,0.29403674]
[1734096692793,0.56000182,100150.0,100140.0,0.29403674]
[1734096692985,0.67937061,100150.0,100140.0,0.29403674]
[1734096693186,0.56000182,100150.0,100140.0,0.29403674]
[1734096694087,0.56000182,100150.0,100140.0,0.23243674]
[1734096694088,0.6557847,100150.0,100140.0,0.23243674]
[1734096694278,0.6883847,100150.0,100140.0,0.23243674]
[1734096694479,0.86749925,100150.0,100140.0,0.23243674]
[1734096698198,0.77171637,100150.0,100140.0,0.23243674]
[1734096698987,0.59260182,100150.0,100140.0,0.23243674]
[1734096699194,0.77171637,100150.0,100140.0,0.23243674]
[1734096701300,0.62244155,100150.0,100140.0,0.23243674]
[1734096702390,0.58984155,100150.0,100140.0,0.32821962]
[1734096702616,0.73918965,100150.0,100140.0,0.32821962]
[1734096702893,0.73918965,100150.0,100140.0,0.23243674]
[1734096707494,0.73918965,100150.0,100140.0,0.29227166]
[1734096707495,0.65585798,100150.0,100140.0,0.29227166]
[1734096707698,0.65585798,100150.0,100140.0,0.47186583]
[1734096707901,0.50650988,100150.0,100140.0,0.23252617]
[1734096709493,0.78547963,100150.0,100140.0,0.003]
[1734096713098,0.68969675,100150.0,100140.0,0.003]
[1734096713399,0.75255486,100150.0,100140.0,0.18259417]
[1734096715495,0.75255486,100150.0,100140.0,0.23252617]
[1734096716601,0.65269966,100150.0,100140.0,0.29538428]
[1734096716905,0.58984155,100150.0,100140.0,0.29538428]
[1734096717099,0.58984155,100150.0,100140.0,0.53472394]
[1734096717307,0.58984155,100150.0,100140.0,0.59672394]
[1734096717500,0.73922056,100150.0,100140.0,0.59672394]
[1734096719303,0.58984155,100150.0,100140.0,0.59672394]
[1734096720108,0.58984155,100150.0,100140.0,0.60675771]
[1734096720801,0.65269966,100150.0,100140.0,0.5438996]
[1734096721308,0.58984155,100150.0,100140.0,0.60675771]
[1734096721902,0.65269966,100150.0,100140.0,0.60675771]
[1734096723210,0.65269966,100150.0,100140.0,0.5438996]
[1734096725305,0.80210635,100150.0,100140.0,0.5438996]
[1734096725906,0.73924824,100150.0,100140.0,0.60675771]
[1734096726503,0.73922634,100150.0,100140.0,0.60675771]
[1734096727612,0.32849934,100150.0,100140.0,0.66961582]
[1734096727809,0.14938479,100150.0,100140.0,1.33290127]
[1734096728013,0.14938479,100150.0,100140.0,1.68126373]
[1734096728214,0.26889555,100150.0,100140.0,1.68126373]
[1734096728802,0.20913229,100150.0,100140.0,1.86558218]
[1734096729012,0.26889056,100160.0,100150.0,0.049927]
[1734096729211,0.11950577,100160.0,100150.0,1.15376266]
[1734096729514,0.14938479,100170.0,100150.0,1.65376266]
[1734096729713,0.96265221,100180.0,100160.0,0.5940443]
[1734096729913,0.95241224,100180.0,100170.0,0.049917]
[1734096730518,0.95241224,100180.0,100170.0,0.22934451]
[1734096730814,0.95241224,100180.0,100170.0,0.049917]
[1734096730815,0.77329769,100180.0,100170.0,0.049917]
[1734096731015,0.6555579,100180.0,100170.0,0.049917]
[1734096731204,0.59269979,100180.0,100170.0,0.049917]
[1734096732012,0.59669979,100180.0,100170.0,0.049917]
[1734096732517,0.59769979,100180.0,100170.0,0.050917]
[1734096736412,0.59769979,100180.0,100170.0,0.14662302]
[1734096736614,0.448315,100180.0,100170.0,0.14662302]
[1734096738311,0.448315,100180.0,100170.0,0.050917]
[1734096738710,0.446315,100180.0,100170.0,0.050917]
[1734096739117,0.446315,100180.0,100170.0,0.049917]
[1734096740720,0.413715,100180.0,100170.0,0.14562302]
[1734096740917,0.3638,100180.0,100170.0,0.14562302]
[1734096741313,0.413712,100180.0,100170.0,0.14562302]
[1734096741521,0.413712,100180.0,100170.0,0.049917]
[1734096746313,0.413712,100180.0,100170.0,0.14562302]
[1734096747339,0.052912,100180.0,100170.0,0.14562302]
[1734096747918,0.003,100180.0,100170.0,0.14562302]
[1734096748619,0.052912,100180.0,100170.0,0.14562302]
[1734096749218,0.413712,100180.0,100170.0,0.14562302]
[1734096749524,0.50941802,100180.0,100170.0,0.049917]
[1734096749924,0.413712,100180.0,100170.0,0.049917]
[1734096750324,0.413712,100180.0,100170.0,0.14562302]
[1734096753125,0.413712,100180.0,100170.0,0.11271981]
[1734096753720,0.47651481,100180.0,100170.0,0.11271981]
[1734096753919,0.413712,100180.0,100170.0,0.11271981]
[1734096754523,0.56309679,100180.0,100170.0,0.11271981]
[1734096754730,0.56309679,100180.0,100170.0,0.049917]
[1734096754920,0.51318479,100180.0,100170.0,0.049917]
[1734096755116,0.51318479,100180.0,100170.0,0.22934451]
[1734096755728,0.15238479,100180.0,100170.0,0.22934451]
[1734096756130,0.003,100180.0,100170.0,0.22934451]
[1734096756331,0.003,100180.0,100170.0,0.29214732]
[1734096756630,0.15238479,100180.0,100170.0,0.531384]
[1734096757132,0.20229679,100180.0,100170.0,0.531384]
[1734096757425,0.15238479,100180.0,100170.0,0.531384]
[1734096758527,0.15238479,100180.0,100170.0,0.28915368]
[1734096758831,0.15238479,100180.0,100170.0,0.35195649]
[1734096759032,0.33149934,100180.0,100170.0,1.15127158]
[1734096759333,0.33149934,100180.0,100170.0,0.35195649]
[1734096759529,0.33149934,100180.0,100170.0,1.5039765]
[1734096759729,0.15238479,100180.0,100170.0,1.16922652]
[1734096759925,0.15238479,100180.0,100170.0,2.02823601]
[1734096760523,0.003,100180.0,100170.0,2.02823601]
[1734096761432,0.003,100180.0,100170.0,1.66922652]
[1734096761731,0.003,100180.0,100170.0,1.62389121]
[1734096762532,0.001,100180.0,100170.0,1.62389121]
[1734096763033,0.001,100180.0,100170.0,1.66757744]
[1734096763430,0.001,100180.0,100170.0,2.03038025]
[1734096763629,0.001,100180.0,100170.0,2.37900351]
[1734096763831,0.001,100180.0,100170.0,2.84080016]
[1734096764135,0.001,100180.0,100170.0,2.54148507]
[1734096764431,0.001,100180.0,100170.0,2.840597]
[1734096765137,0.001,100180.0,100170.0,2.540597]
[1734096765525,0.93460506,100200.0,100190.0,0.049907]
[1734096765726,0.93460506,100200.0,100190.0,0.2921363]
[1734096765727,0.87180225,100200.0,100190.0,0.2921363]
[1734096766035,0.87180225,100200.0,100190.0,0.049907]
[1734096766036,0.78522027,100200.0,100190.0,0.049907]
[1734096767135,0.78372236,100200.0,100190.0,0.11270981]
[1734096767931,0.78372236,100200.0,100190.0,0.11370981]
[1734096768324,0.78772236,100200.0,100190.0,0.11370981]
[1734096768835,0.78772236,100200.0,100190.0,0.050907]
[1734096769035,0.78772236,100200.0,100190.0,0.11370981]
[1734096770029,0.78772236,100200.0,100190.0,0.050907]
[1734096775834,0.95033054,100200.0,100190.0,0.001]
[1734096776341,0.98028056,100200.0,100190.0,0.001]
[1734096776634,1.2192115,100200.0,100190.0,0.001]
[1734096777139,1.09360588,100200.0,100190.0,0.001]
[1734096777350,1.2192115,100200.0,100190.0,0.001]
[1734096780640,0.98028056,100200.0,100190.0,0.001]
[1734096781342,0.77121599,100200.0,100190.0,0.001]
[1734096782744,1.13201599,100200.0,100190.0,0.001]
[1734096783446,1.00641037,100200.0,100190.0,0.001]
[1734096783648,1.13201599,100200.0,100190.0,0.001]
[1734096785546,1.13201599,100200.0,100170.0,0.17942649]
[1734096785547,1.70388337,100200.0,100170.0,0.17942649]
[1734096785849,0.049917,100170.0,100160.0,0.41866181]
[1734096786037,0.47351981,100170.0,100160.0,0.17942649]
[1734096786243,0.68531221,100170.0,100160.0,0.41866181]
[1734096786448,0.68531221,100170.0,100160.0,0.17942649]
[1734096786449,0.81631758,100170.0,100160.0,0.17942649]
[1734096787542,0.81631758,100170.0,100160.0,0.18042649]
[1734096788842,0.81631758,100170.0,100160.0,0.001]
[1734096789041,0.81631758,100170.0,100160.0,0.003]
[1734096789352,0.93567234,100170.0,100160.0,0.18242649]
[1734096790054,0.94572166,100170.0,100160.0,0.18242649]
[1734096790250,0.94570361,100170.0,100160.0,0.18242649]
[1734096790554,0.94568441,100170.0,100160.0,0.003]
[1734096790950,0.79639201,100170.0,100160.0,0.18242649]
[1734096791249,0.79639201,100170.0,100160.0,0.17852762]
[1734096791250,0.70006409,100170.0,100160.0,0.17852762]
[1734096791452,0.53002815,100170.0,100160.0,0.85795411]
[1734096791656,0.48011115,100170.0,100160.0,0.92275411]
[1734096791953,0.3608,100170.0,100160.0,0.66198943]
[1734096792154,0.48011115,100170.0,100160.0,0.66198943]
[1734096792364,0.48011115,100170.0,100160.0,0.74332762]
[1734096792365,0.62940355,100170.0,100160.0,0.74332762]
[1734096793063,0.48011115,100170.0,100160.0,0.74332762]
[1734096793551,0.26860355,100170.0,100160.0,1.10412762]
[1734096793752,0.11931115,100170.0,100160.0,1.11059934]
[1734096793942,0.11931115,100170.0,100160.0,1.11059977]
[1734096794146,0.11931115,100170.0,100160.0,1.29002626]
[1734096794345,0.26860355,100170.0,100160.0,0.92922626]
[1734096794546,0.11931115,100170.0,100160.0,1.29002626]
[1734096795149,0.67931555,100180.0,100160.0,1.54927489]
[1734096795343,0.67931555,100180.0,100170.0,0.14561393]
[1734096796948,0.68031555,100180.0,100170.0,0.17871393]
[1734096797553,0.48111115,100180.0,100170.0,0.35814042]
[1734096797758,0.48111115,100180.0,100170.0,0.36460427]
[1734096798560,0.48111115,100180.0,100170.0,0.35814042]
[1734096798760,0.48111115,100180.0,100170.0,0.86460525]
[1734096799059,0.12031115,100180.0,100170.0,0.96464057]
[1734096799265,0.17022315,100180.0,100170.0,0.96464057]
[1734096799457,0.53102315,100180.0,100170.0,1.00814364]
[1734096799655,0.53102315,100180.0,100170.0,0.50814364]
[1734096799871,0.53102315,100180.0,100170.0,0.26890832]
[1734096800861,0.17022315,100180.0,100170.0,0.50801606]
[1734096801049,0.17022315,100180.0,100170.0,0.26878074]
[1734096801359,0.17022315,100180.0,100170.0,0.50801606]
[1734096801954,0.17022315,100180.0,100170.0,0.60371299]
[1734096803151,0.12031115,100180.0,100170.0,0.60371299]
[1734096803558,0.12031115,100180.0,100170.0,1.10373719]
[1734096804358,0.12031115,100180.0,100170.0,1.10373934]
[1734096805560,0.12031115,100180.0,100170.0,1.10385491]
[1734096806266,0.12031115,100180.0,100170.0,0.92444043]
[1734096806449,0.12031115,100180.0,100170.0,1.67909741]
[1734096807060,0.12031115,100180.0,100170.0,1.58340048]
[1734096807251,0.12031115,100180.0,100170.0,1.67909741]
[1734096807450,0.001,100180.0,100170.0,1.67909741]
[1734096807963,0.001,100180.0,100170.0,2.33989741]
[1734096808169,0.001,100180.0,100170.0,2.24420048]
[1734096808354,0.001,100180.0,100170.0,2.36397465]
[1734096808562,0.001,100180.0,100170.0,2.00496516]
[1734096808863,0.001,100180.0,100170.0,1.70496516]
[1734096809065,0.050912,100180.0,100170.0,1.08327331]
[1734096809264,0.17022315,100180.0,100170.0,0.61347779]
[1734096809470,0.17022315,100180.0,100170.0,0.29551633]
[1734096809763,0.17022315,100180.0,100170.0,0.47487233]
[1734096809973,0.53102315,100180.0,100170.0,0.47487233]
[1734096812170,0.53102315,100180.0,100170.0,0.57056926]
[1734096813065,0.48111115,100180.0,100170.0,1.0705682]
[1734096813259,0.12031115,100180.0,100170.0,1.01862832]
[1734096813675,0.12031115,100180.0,100170.0,1.31862832]
[1734096814065,0.12031115,100180.0,100170.0,1.01862832]
[1734096814264,0.07031115,100180.0,100170.0,1.01862832]
[1734096814672,0.5100924,100190.0,100170.0,1.31862832]
[1734096814862,0.5100924,100190.0,100180.0,0.38722563]
[1734096815168,0.5100924,100190.0,100180.0,0.39373494]
[1734096815768,0.3608,100190.0,100180.0,0.39373494]
[1734096815968,0.412707,100190.0,100180.0,0.29803801]
[1734096816171,0.412707,100190.0,100180.0,0.23573129]
[1734096816363,0.5619994,100190.0,100180.0,0.2292287]
[1734096817274,0.5619994,100190.0,100180.0,0.23572097]
[1734096819061,0.5619994,100190.0,100180.0,0.23571739]
[1734096820270,0.5619994,100190.0,100180.0,0.33141432]
[1734096820972,0.5120924,100190.0,100180.0,0.57052247]
[1734096821170,0.5120924,100190.0,100180.0,0.63112247]
[1734096824880,0.5120924,100190.0,100180.0,0.62463378]
[1734096825278,0.1512924,100190.0,100180.0,0.62463378]
[1734096825480,0.1512924,100190.0,100180.0,1.5969777]
[1734096825782,0.002,100190.0,100180.0,1.5969777]
[1734096826283,0.002,100190.0,100180.0,1.6282777]
[1734096826983,0.45906128,100200.0,100190.0,0.049907]
[1734096827178,0.42846128,100200.0,100190.0,0.92498999]
[1734096827383,0.2492924,100200.0,100190.0,1.42498999]
[1734096827582,0.2492924,100200.0,100190.0,1.54455623]
[1734096828081,0.2492924,100200.0,100190.0,1.42496102]
[1734096828382,0.1,100200.0,100190.0,1.65643708]
[1734096828582,0.1,100200.0,100190.0,1.89559755]
[1734096828775,0.102,100200.0,100190.0,1.89559755]
[1734096829382,0.151902,100200.0,100190.0,0.93910062]
[1734096829681,0.151902,100200.0,100190.0,0.58811162]
[1734096829873,0.102,100200.0,100190.0,0.68380855]
[1734096830073,0.102,100200.0,100190.0,1.04460855]
[1734096830274,0.102,100200.0,100190.0,0.68380855]
[1734096830483,0.102,100200.0,100190.0,1.03388283]
[1734096830981,0.102,100200.0,100190.0,0.56405618]
[1734096831379,0.052,100200.0,100190.0,1.39425618]
[1734096831778,0.052,100200.0,100190.0,1.3942384]
[1734096832079,0.052,100200.0,100190.0,1.2149644]
[1734096832686,0.052,100200.0,100190.0,1.39421313]
[1734096832876,0.052,100200.0,100190.0,1.2149644]
[1734096833581,0.052,100200.0,100190.0,1.39421357]
[1734096836477,0.052,100200.0,100190.0,1.06401357]
[1734096839285,0.052,100200.0,100190.0,1.08429936]
[1734096840178,0.052,100200.0,100190.0,1.44509936]
[1734096841184,0.052,100200.0,100190.0,1.91437868]
[1734096841977,0.05,100200.0,100190.0,1.91437868]
[1734096844282,0.3608,100210.0,100200.0,0.049902]
[1734096844481,0.3608,100210.0,100200.0,0.30449586]
[1734096844682,0.3608,100210.0,100200.0,0.80449586]
[1734096844896,0.3608,100210.0,100200.0,0.98369714]
[1734096845583,0.3628,100210.0,100200.0,0.98369714]
[1734096846582,0.3628,100210.0,100200.0,1.22285761]
[1734096846991,0.3628,100210.0,100200.0,0.98369714]
[1734096847285,0.3628,100210.0,100200.0,0.88800021]
[1734096847494,0.002,100210.0,100200.0,1.61375761]
[1734096848175,0.002,100210.0,100200.0,2.08089413]
[1734096848377,0.002,100210.0,100200.0,1.84173366]
[1734096848590,0.74064862,100230.0,100200.0,2.1305504]
[1734096848781,0.74064862,100230.0,100210.0,0.27488626]
[1734096849081,0.56147974,100230.0,100220.0,0.049892]
[1734096849684,0.56747974,100230.0,100220.0,0.049892]
[1734096850084,0.51758974,100230.0,100220.0,0.14558893]
[1734096850495,0.51758974,100230.0,100220.0,0.14658893]
[1734096852492,0.45777226,100230.0,100220.0,0.14658893]
[1734096853387,0.45577226,100230.0,100220.0,0.14658893]
[1734096853593,0.50565926,100230.0,100220.0,0.14658893]
[1734096854488,0.56547674,100230.0,100220.0,0.14658893]
[1734096854692,0.56547674,100230.0,100220.0,0.050892]
[1734096854894,0.59817674,100230.0,100220.0,0.050892]
[1734096855092,0.59817674,100230.0,100220.0,0.14658893]
[1734096855600,0.59817674,100230.0,100220.0,0.32577826]
[1734096856097,0.59817674,100230.0,100220.0,0.14658893]
[1734096856491,0.59817674,100230.0,100220.0,0.32577826]
[1734096857098,0.59817674,100230.0,100220.0,0.32477826]
[1734096858201,0.59617674,100230.0,100220.0,0.32477826]
[1734096859303,0.59617674,100230.0,100220.0,0.33486588]
[1734096860590,0.59617674,100230.0,100220.0,0.15567655]
[1734096863302,0.5120924,100230.0,100220.0,0.18544862]
[1734096864405,0.5120924,100230.0,100220.0,0.36463795]
[1734096864600,0.5619794,100230.0,100220.0,0.23916895]
[1734096864902,0.5926794,100230.0,100220.0,0.29181583]
[1734096865102,0.049892,100220.0,100210.0,0.41810407]
[1734096865306,0.5624775,100220.0,100210.0,0.22908633]
[1734096865507,0.472992,100220.0,100210.0,0.17918933]
[1734096865699,0.6222844,100220.0,100210.0,0.22908633]
[1734096865900,0.71176487,100220.0,100210.0,0.22908633]
[1734096866096,0.6222844,100220.0,100210.0,0.22908633]
[1734096866805,0.80145328,100220.0,100210.0,0.049897]
[1734096868798,0.79769647,100220.0,100200.0,0.46800207]
[1734096869005,0.55987724,100210.0,100200.0,0.22908733]
[1734096869209,0.59087724,100210.0,100200.0,0.22908733]
[1734096870509,0.59087724,100210.0,100200.0,0.32473092]
[1734096871607,0.59087724,100210.0,100200.0,0.32673092]
[1734096872204,0.59087724,100210.0,100200.0,0.32473092]
[1734096873006,0.59087724,100210.0,100200.0,0.14554159]
[1734096874803,0.55987724,100210.0,100200.0,0.32473092]
[1734096875007,0.67918709,100210.0,100200.0,0.32473092]
[1734096876803,0.67918709,100210.0,100200.0,0.14554159]
[1734096885218,0.67918709,100210.0,100200.0,0.11266327]
[1734096885811,0.55987724,100210.0,100200.0,0.11266327]
[1734096886717,0.73904612,100210.0,100200.0,0.11266327]
[1734096887416,0.049902,100200.0,100190.0,0.47786916]
[1734096887619,0.049907,100190.0,100180.0,0.46810465]
[1734096887912,0.049907,100190.0,100180.0,0.22919491]
[1734096887913,0.77239352,100190.0,100180.0,0.22919491]
[1734096888114,0.049912,100180.0,100170.0,0.83141891]
[1734096888317,0.5299563,100180.0,100170.0,0.29346002]
[1734096888520,0.59272157,100180.0,100170.0,0.29346002]
[1734096888816,0.5626563,100180.0,100170.0,0.11417711]
[1734096889409,0.5626563,100180.0,100170.0,0.12317711]
[1734096890010,0.5626563,100180.0,100170.0,0.13338931]
[1734096890210,0.5636563,100180.0,100170.0,0.14238931]
[1734096891131,0.5636563,100180.0,100170.0,0.14038931]
[1734096895008,0.5636563,100180.0,100170.0,0.13889247]
[1734096896620,0.5636563,100180.0,100170.0,0.12868027]
[1734096896916,0.62642157,100180.0,100170.0,0.016]
[1734096897117,0.93819238,100180.0,100170.0,0.016]
[1734096897435,0.99811696,100180.0,100170.0,0.016]
[1734096897815,0.049927,100160.0,100150.0,0.049927]
[1734096898123,0.95333727,100160.0,100150.0,0.11269227]
[1734096898322,0.98653727,100160.0,100150.0,0.049927]
[1734096898522,0.923772,100160.0,100150.0,0.11269227]
[1734096898725,0.86749227,100160.0,100150.0,0.11269227]
[1734096899110,0.804727,100160.0,100150.0,0.058927]
[1734096900026,0.805727,100160.0,100150.0,0.067927]
[1734096901820,0.0342,100160.0,100150.0,0.16367692]
[1734096902027,0.395,100160.0,100150.0,0.16367692]
[1734096902224,0.444922,100160.0,100150.0,0.16367692]
[1734096902824,0.444922,100160.0,100150.0,0.067927]
[1734096905228,0.54067192,100160.0,100150.0,0.018]
[1734096905424,0.64051715,100160.0,100150.0,0.018]
[1734096905918,0.64051715,100160.0,100140.0,0.00012535]
[1734096906123,0.56807692,100150.0,100140.0,0.00012535]
[1734096907318,0.66793212,100150.0,100140.0,0.00012535]
[1734096908426,0.66893212,100150.0,100140.0,0.00912535]
[1734096908631,0.66993212,100150.0,100140.0,0.00912535]
[1734096912122,1.18472704,100150.0,100100.0,0.51819765]
[1734096912328,0.60224684,100110.0,100100.0,0.1]
[1734096912832,0.66504684,100110.0,100100.0,0.1]
[1734096913143,0.66514063,100110.0,100100.0,0.1]
[1734096913630,0.76494195,100110.0,100100.0,0.1]
[1734096914329,0.76594195,100110.0,100100.0,0.1]
[1734096915125,0.79714195,100110.0,100100.0,0.1]
[1734096915530,0.79714195,100110.0,100080.0,0.033]
[1734096915531,0.049957,100090.0,100080.0,0.033]
[1734096915727,0.86741123,100090.0,100080.0,0.033]
[1734096916527,0.86841123,100090.0,100080.0,0.033]
[1734096917732,0.76842143,100090.0,100080.0,0.033]
[1734096918134,0.76942143,100090.0,100080.0,0.033]
[1734096918437,0.049962,100080.0,100070.0,0.0307]
[1734096918640,0.50660796,100080.0,100070.0,0.0307]
[1734096919031,0.50660796,100080.0,100070.0,0.04632104]
[1734096919636,0.60235788,100080.0,100070.0,0.04632104]
[1734096919836,0.66825788,100080.0,100070.0,0.04632104]
[1734096920138,0.76908689,100080.0,100070.0,0.01562104]
[1734096920341,0.76920111,100080.0,100070.0,0.01562104]
[1734096920653,0.77008689,100080.0,100070.0,0.01562104]
[1734096921437,0.76908689,100080.0,100070.0,0.01562104]
[1734096921638,0.77008689,100080.0,100070.0,0.01562104]
[1734096922944,0.67433697,100080.0,100070.0,0.01562104]
[1734096923134,0.478662,100080.0,100070.0,0.01562104]
[1734096923335,0.47875769,100080.0,100070.0,0.01562104]
[1734096923840,0.57450761,100080.0,100070.0,0.01562104]
[1734096925045,0.57450761,100080.0,100070.0,0.06558804]
[1734096925046,0.41285769,100080.0,100070.0,0.06558804]
[1734096925245,0.20291561,100080.0,100070.0,0.079967]
[1734096925542,0.34862753,100080.0,100070.0,0.079967]
[1734096925749,0.34862753,100080.0,100070.0,0.03]
[1734096925935,0.34862753,100080.0,100070.0,0.0456208]
[1734096926837,0.44845689,100080.0,100070.0,0.0456208]
[1734096927739,0.34853184,100080.0,100070.0,0.0456208]
[1734096927944,0.34862426,100080.0,100070.0,0.0456208]
[1734096929147,0.34862426,100080.0,100070.0,0.04562103]
[1734096929348,0.34862426,100080.0,100070.0,0.01562103]
[1734096929540,0.51355689,100080.0,100070.0,0.01562103]
[1734096930040,0.51368014,100080.0,100070.0,0.01562103]
[1734096930245,0.51365789,100080.0,100070.0,0.01562103]
[1734096930449,0.41372494,100080.0,100070.0,0.01562103]
[1734096930954,0.25287502,100080.0,100070.0,0.01562103]
[1734096931252,0.34862494,100080.0,100070.0,0.01562103]
[1734096933045,0.34862494,100080.0,100070.0,0.04802103]
[1734096933251,0.25287502,100080.0,100070.0,0.04802103]
[1734096933753,0.34862494,100080.0,100070.0,0.04802103]
[1734096933952,0.34862494,100080.0,100070.0,0.01562103]
[1734096934149,0.51315689,100080.0,100070.0,0.01562103]
[1734096934837,0.51328099,100080.0,100070.0,0.01562103]
[1734096935043,0.25290602,100080.0,100070.0,0.06558803]
[1734096935237,0.25290602,100080.0,100070.0,0.09628803]
[1734096935442,0.34865594,100080.0,100070.0,0.080667]
[1734096935640,0.34865594,100080.0,100070.0,0.09628815]
[1734096936452,0.34865594,100080.0,100070.0,0.12928815]
[1734096936639,0.34865594,100080.0,100070.0,0.04862115]
[1734096936839,0.51215689,100080.0,100070.0,0.04862115]
[1734096938846,0.51227757,100080.0,100070.0,0.04862115]
[1734096939050,0.51215689,100080.0,100070.0,0.04862115]
[1734096939355,0.51215689,100080.0,100070.0,0.22790406]
[1734096939558,0.51215689,100080.0,100070.0,0.27164559]
[1734096939740,0.51215689,100080.0,100070.0,0.22790406]
[1734096940359,0.51215689,100080.0,100070.0,0.4668188]
[1734096941361,0.51215689,100080.0,100070.0,0.33127744]
[1734096941552,0.51215689,100080.0,100070.0,0.51067332]
[1734096941754,0.51215689,100080.0,100070.0,0.33127744]
[1734096941948,0.51215689,100080.0,100070.0,0.3312783]
[1734096942264,0.51215689,100080.0,100070.0,0.9824829]
[1734096942954,0.51224604,100080.0,100070.0,0.98291092]
[1734096943149,0.51215689,100080.0,100070.0,0.63032245]
[1734096943349,0.51226669,100080.0,100070.0,0.98328438]
[1734096943548,0.51215689,100080.0,100070.0,0.98328438]
[1734096943755,0.52195876,100080.0,100070.0,0.98328438]
[1734096944753,0.41223184,100080.0,100070.0,0.79433664]
[1734096944957,0.381061,100080.0,100070.0,0.79433664]
[1734096945153,0.381061,100080.0,100070.0,1.15334525]
[1734096945453,0.49912185,100080.0,100070.0,0.74436876]
[1734096945653,0.381061,100080.0,100070.0,0.74436876]
[1734096945860,0.381061,100080.0,100070.0,0.72874763]
[1734096946267,0.381061,100080.0,100070.0,1.08775712]
[1734096946452,0.381061,100080.0,100070.0,0.72874763]
[1734096947263,0.49912185,100080.0,100070.0,1.08775712]
[1734096947459,0.49912185,100080.0,100070.0,0.72874763]
[1734096947963,0.49912185,100080.0,100070.0,0.74436955]
[1734096948162,0.49912185,100080.0,100070.0,0.98402952]
[1734096948366,0.74822714,100080.0,100070.0,0.74436955]
[1734096948659,0.74822714,100080.0,100070.0,0.98410319]
[1734096948964,1.02584429,100080.0,100070.0,0.00983888]
[1734096949267,1.02584429,100080.0,100060.0,0.35900949]
[1734096949268,0.049967,100070.0,100060.0,0.35900949]
[1734096949458,0.83743283,100070.0,100050.0,0.35900949]
[1734096949665,0.049977,100050.0,100040.0,0.03481616]
[1734096949859,0.29489887,100050.0,100040.0,0.03481616]
[1734096950252,0.41419451,100050.0,100040.0,0.03331686]
[1734096950458,0.39485389,100050.0,100040.0,0.03331686]
[1734096950867,0.30010397,100050.0,100040.0,0.03331686]
[1734096951071,0.30018508,100050.0,100040.0,0.03331686]
[1734096951369,0.20023006,100050.0,100040.0,0.08329886]
[1734096951863,0.32049057,100050.0,100040.0,0.08329886]
[1734096953161,0.41624049,100050.0,100040.0,0.03331686]
[1734096953360,0.51619551,100050.0,100040.0,0.08329886]
[1734096953562,0.41624049,100050.0,100040.0,0.08329886]
[1734096954170,0.41624049,100050.0,100040.0,0.03331686]
[1734096955265,0.41624049,100050.0,100040.0,0.08329886]
[1734096955665,0.32049057,100050.0,100040.0,0.08329886]
[1734096958959,0.32049057,100050.0,100040.0,0.12704814]
[1734096959366,0.41624049,100050.0,100040.0,0.12704814]
[1734096959563,0.41624049,100050.0,100040.0,0.08329886]
[1734096960463,0.32049057,100050.0,100040.0,0.08329886]
[1734096960663,0.31949057,100050.0,100040.0,0.08329886]
[1734096960867,0.32049057,100050.0,100040.0,0.08329886]
[1734096961267,0.41624049,100050.0,100040.0,0.08329886]
[1734096961864,0.41624049,100050.0,100010.0,1.11104423]
[1734096961865,1.0535299,100050.0,100010.0,0.71980949]
[1734096962168,0.049997,100010.0,100000.0,0.2]
[1734096962374,0.049997,100010.0,100000.0,0.24376185]
[1734096962375,0.65571887,100010.0,100000.0,0.24376185]
[1734096962671,0.68555354,100010.0,100000.0,0.25939217]
[1734096962874,0.78552354,100010.0,100000.0,0.25939217]
[1734096963169,0.78562938,100010.0,100000.0,0.25939217]
[1734096963470,0.78562938,100010.0,100000.0,0.21563032]
[1734096963471,0.7866243,100010.0,100000.0,0.21563032]
[1734096964169,0.78652354,100010.0,100000.0,0.21563032]
[1734096964665,0.78652354,100010.0,100000.0,0.03553657]
[1734096965275,0.85042354,100010.0,100000.0,0.03553657]
[1734096965473,0.99869511,100010.0,100000.0,0.03553657]
[1734096965864,0.99869511,100010.0,100000.0,0.01563032]
[1734096966061,0.05001,99984.0,99983.0,0.05001]
[1734096966269,0.7216,99984.0,99983.0,0.05001]
[1734096966778,0.050013,99978.0,99977.0,0.050014]
[1734096967367,0.050014,99976.0,99974.0,0.0313]
[1734096967562,0.3608,99975.0,99974.0,0.0313]
[1734096969075,0.262,99975.0,99974.0,0.0313]
[1734096969376,0.262,99975.0,99974.0,0.5313]
[1734096969970,0.263,99975.0,99974.0,0.5313]
[1734096971775,0.263,99975.0,99974.0,0.0313]
[1734096974477,0.263,99975.0,99974.0,0.5313]
[1734096976082,0.213,99975.0,99974.0,0.57507197]
[1734096977483,0.3608,99984.0,99983.0,0.050011]
[1734096977673,0.3608,99992.0,99991.0,0.050007]
[1734096980583,0.3628,99992.0,99991.0,0.051007]
[1734096980979,0.3628,99992.0,99991.0,0.551007]
[1734096981182,0.3628,99992.0,99991.0,0.051007]
[1734096981981,0.3608,99997.0,99991.0,0.051007]
[1734096982175,0.3608,99997.0,99996.0,0.050004]
[1734096982375,0.00010838,100000.0,99999.0,0.050003]
[1734096982982,0.00010838,100000.0,99999.0,0.550003]
[1734096983283,0.00010838,100000.0,99999.0,0.050003]
[1734096984483,0.36090838,100000.0,99999.0,0.050003]
[1734096984684,0.00010838,100000.0,99999.0,0.050003]
[1734096984890,0.45126375,100020.0,99999.0,0.552003]
[1734096985184,0.45126375,100020.0,100010.0,0.14574692]
[1734096985383,0.09046375,100020.0,100010.0,0.14574692]
[1734096985683,0.36230082,100020.0,100010.0,0.64574692]
[1734096985875,0.36230082,100020.0,100010.0,0.14574692]
[1734096986081,0.36230082,100020.0,100010.0,0.64574692]
[1734096986282,0.36230082,100020.0,100010.0,0.68950392]
[1734096986483,0.3608,100020.0,100010.0,0.18950392]
[1734096986683,0.3608,100020.0,100010.0,0.68950392]
[1734096987087,0.3608,100020.0,100010.0,0.18950392]
[1734096987088,0.3618,100020.0,100010.0,0.18950392]
[1734096987376,0.3618,100020.0,100010.0,0.68950392]
[1734096987576,0.3608,100020.0,100010.0,0.68950392]
[1734096987775,0.3618,100020.0,100010.0,0.19050392]
[1734096987991,0.56838017,100040.0,100020.0,0.049992]